[Event "NOR-ch Youth 2019"]
[Site "Skien"]
[Date "2019.11.10"]
[Round "6.16"]
[White "Olsen, William Alexander"]
[Black "Digernes, Mikael"]
[Result "1-0"]
[ECO "E63"]
[WhiteElo "1842"]
[BlackElo "1715"]
[Annotator "NA RC"]
[PlyCount "99"]
[EventDate "2019.11.08"]
[EventType "swiss"]
[EventCountry "NOR"]
[SourceTitle "playchess.com"]
[Source "ChessBase"]
[SourceQuality "1"]
[TimeControl "5400+30"]

{[%evp 38,99,53,23,33,29,38,0,12,0,0,-40,-6,-6,24,20,43,27,39,11,27,5,75,-8,110,130,135,0,0,0,191,32767,32767,47,743,320,231,269,516,551,913,779,884,909,761,1143,637,4594,4710,12848,5501,12840,5057,1847,12845,29991,29984,29990,29990,29990,12849,29991,29991,29992]} 1. c4 {[%emt 0:00:00]} Nf6 {[%emt 0:00:00]} 2. Nf3 {[%emt 0:00:00]} g6 {[%emt 0:00:00]} 3. g3 {[%emt 0:00:00]} Bg7 {[%emt 0:00:07]} 4. Bg2 {[%emt 0:00:00]} d6 {[%emt 0:00:23]} 5. O-O {[%emt 0:00:53]} O-O {[%emt 0:00:17]} 6. Nc3 {[%emt 0:00:20]} Nc6 {[%emt 0:00:50]} 7. e3 {[%emt 0:01:28]} a6 {[%emt 0:01:07]} 8. d4 {[%emt 0:01:19]} Rb8 {[%emt 0:01:15]} 9. a4 {[%emt 0:06:39] E63: King's Indian: Fianchetto: Panno Variation with 7...a6} (9. Qe2 b5 10. Rd1 e6 11. b3 bxc4 12. Qxc4 Nb4 13. a3 Nbd5 14. Ne2 Bd7 15. Qc2 Bb5 16. Re1 c5 {½-½ (48) Tomashevsky,E (2702)-Nakamura,H (2780) Palma de Mallorca 2017}) 9... Bf5 {[%emt 0:05:42]} 10. Re1 {[%emt 0:04:25]} Ne4 $146 {[%emt 0:03:32]} ({Predecessor:} 10... e5 11. Nh4 Bg4 12. f3 Bd7 13. d5 Na5 14. Bf1 c5 15. e4 Qb6 16. Ra3 {0-1 (37) Kosovac,M (2039)-Ivanovic,N (2227) Belgrade 2011}) 11. Nh4 {[%emt 0:07:20]} Nxc3 {[%emt 0:03:19]} 12. bxc3 {[%emt 0:00:03]} Bd7 {[%emt 0:03:47]} 13. a5 {[%emt 0:02:26]} e5 {[%emt 0:04:04]} 14. d5 {[%emt 0:06:26]} Ne7 {[%emt 0:02:30]} 15. e4 {[%emt 0:00:10]} f5 {[%emt 0:06:58]} 16. Bg5 {[%emt 0:01:53]} Qe8 {[%emt 0:09:16]} 17. Qd2 {[%emt 0:01:56]} fxe4 {[%emt 0:16:25]} 18. Bxe4 {[%emt 0:00:38]} Nf5 {[%emt 0:00:20]} 19. Ng2 {[%emt 0:20:04]} Qf7 {[%emt 0:07:25]} 20. Rf1 {[%emt 0:01:49]} Bf6 {[%emt 0:06:38]} 21. Bxf6 {[%emt 0:04:43]} Qxf6 {[%emt 0:00:09]} 22. f4 {[%emt 0:00:19]} Rbe8 {[%emt 0:03:01]} 23. Rae1 {[%emt 0:00:31]} Qg7 {[%emt 0:02:26]} 24. g4 {[%emt 0:10:08]} Ne7 {[%emt 0:07:01]} 25. h3 {[%emt 0:00:53]} h5 {[%emt 0:01:56]} 26. gxh5 {[%emt 0:02:01]} (26. fxe5 $5 {[%cal Re5e6]} Rxf1+ 27. Rxf1 Qxe5 28. Qf2 $14) 26... Bxh3 {[%emt 0:01:22]} 27. fxe5 {[%emt 0:03:39]} gxh5 {[%emt 0:06:39]} 28. exd6 {[%emt 0:03:31]} cxd6 {[%emt 0:00:15]} 29. Qd3 {[%emt 0:00:54]} Bg4 {[%emt 0:02:15] [#]} (29... Rxf1+ $11 30. Rxf1 Bxg2 31. Bxg2 Ng6) 30. Qg3 {[%emt 0:01:44]} (30. c5 $1 $14 {[%mdl 512]}) 30... Rf6 {[%emt 0:02:21]} (30... Rxf1+ $11 31. Rxf1 Be2 32. Qxg7+ Kxg7) 31. Rxf6 {[%emt 0:03:59]} Qxf6 {[%emt 0:00:02]} 32. Nf4 {[%emt 0:00:29]} (32. Rf1 $16 Qh6 33. c5) 32... Kh8 {[%emt 0:00:31]} 33. Bg2 {[%emt 0:00:59]} Rg8 $11 {[%emt 0:01:20]} (33... Rf8 $2 {[%emt 0:01:15]}) 34. Qf2 {[%emt 0:00:48]} Rf8 {[%emt 0:01:02]} 35. c5 {[%emt 0:04:06] Remove Defender, Decoy} Qg5 $2 {[%emt 0:02:24]} (35... Kg8 $14) 36. Qd4+ {[%emt 0:00:35]} (36. cxd6 $142 Ng8 {[#]} 37. Ng6+ $1 {[%mdl 512]} Qxg6 38. Qxf8) 36... Kg8 {[%emt 0:00:34]} 37. cxd6 {[%emt 0:01:16]} Nf5 $2 {[%emt 0:00:38]} (37... Ng6 38. Nxg6 Qxg6) 38. Qe5 {[%emt 0:00:18]} Qd8 {[%emt 0:00:33]} 39. Ne6 {[%emt 0:00:15]} Qxd6 {[%emt 0:00:34]} 40. Nxf8 {[%emt 0:00:26]} Qxe5 {[%emt 0:00:16]} 41. Rxe5 {[%emt 0:00:16]} Kxf8 {[%emt 0:00:15] [#]} 42. Bf3 $1 {[%emt 0:00:37]} Nd6 {[%emt 0:00:52]} 43. Bxg4 {[%emt 0:00:36]} hxg4 {[%emt 0:00:17]} 44. Re6 {[%emt 0:00:25]} Nb5 {[%emt 0:00:21]} 45. c4 {[%emt 0:00:19]} (45. d6 $142 Kf7 {[#]} 46. d7 $1 {[%mdl 512]} Kxe6 47. d8=Q) 45... Na3 {[%emt 0:00:56]} 46. d6 {[%emt 0:00:25]} Kf7 {[%emt 0:00:29]} 47. Re4 {[%emt 0:00:15]} Nxc4 {[%emt 0:00:31]} 48. Rxc4 {[%emt 0:00:12]} Ke6 {[%emt 0:00:06]} 49. Rd4 {[%emt 0:00:04]} Kd7 {[%emt 0:00:13]} 50. Kg2 {[%emt 0:00:04]} 1-0

[Event "NOR-ch Youth 2019"]
[Site "Skien"]
[Date "2019.11.10"]
[Round "6.17"]
[White "Steensen, Oskar"]
[Black "Strand, Vetle Bjorge"]
[Result "0-1"]
[ECO "A07"]
[WhiteElo "1457"]
[BlackElo "1695"]
[Annotator "NA RC"]
[PlyCount "116"]
[EventDate "2019.11.08"]
[EventType "swiss"]
[EventCountry "NOR"]
[SourceTitle "playchess.com"]
[Source "ChessBase"]
[SourceQuality "1"]
[TimeControl "5400+30"]

1. Nf3 {[%emt 0:00:00]} d5 {[%emt 0:00:36]} 2. g3 {[%emt 0:00:00]} Bf5 {[%emt 0:00:10]} 3. d3 {[%emt 0:00:11]} Nf6 {[%emt 0:00:08]} 4. Bg2 {[%emt 0:00:06]} e6 {[%emt 0:00:05]} 5. O-O {[%emt 0:00:24]} c5 {[%emt 0:00:51]} 6. b3 {[%emt 0:00:51]} Nc6 {[%emt 0:00:06]} 7. Bb2 {[%emt 0:00:07]} Be7 {[%emt 0:00:12]} 8. Nbd2 {[%emt 0:00:09]} O-O {[%emt 0:01:20]} 9. Nh4 {[%emt 0:01:47]} Bg6 {[%emt 0:00:26]} 10. Nxg6 {[%emt 0:00:09]} hxg6 {[%emt 0:00:15]} 11. c4 {[%emt 0:01:05]} Qd7 {[%emt 0:12:16]} 12. Rc1 {[%emt 0:01:07]} d4 {[%emt 0:01:37]} 13. Ne4 {[%emt 0:03:13]} Nxe4 {[%emt 0:03:05]} 14. dxe4 {[%emt 0:03:35]} e5 {[%emt 0:04:13]} 15. e3 {[%emt 0:03:33]} Rad8 {[%emt 0:04:15]} 16. Qe2 {[%emt 0:01:31]} Bd6 {[%emt 0:28:22]} 17. f4 {[%emt 0:05:00]} f6 {[%emt 0:06:46]} 18. f5 {[%emt 0:03:40]} Qf7 {[%emt 0:05:07]} 19. exd4 {[%emt 0:00:44]} exd4 {[%emt 0:00:45]} 20. e5 {[%emt 0:00:58]} Bxe5 {[%emt 0:01:21]} 21. Bd5 {[%emt 0:00:11]} Rxd5 {[%emt 0:00:16]} 22. fxg6 {[%emt 0:00:35]} Qxg6 {[%emt 0:01:11]} 23. cxd5 {[%emt 0:00:15]} Nb4 {[%emt 0:03:32]} 24. Rf3 {[%emt 0:04:32]} b6 {[%emt 0:03:13]} 25. d6 {[%emt 0:09:44]} Qf7 {[%emt 0:02:45]} 26. Qc4 {[%emt 0:01:40]} Qxc4 {[%emt 0:00:56]} 27. bxc4 {[%emt 0:01:09]} Bxd6 {[%emt 0:01:10]} 28. Rf5 {[%emt 0:02:59]} Be5 {[%emt 0:05:31]} 29. Rd1 {[%emt 0:04:37]} Nc6 {[%emt 0:05:00]} 30. Rf3 {[%emt 0:04:22]} Rd8 {[%emt 0:03:08]} 31. Kf2 {[%emt 0:04:58]} Kf7 {[%emt 0:00:15]} 32. Ba3 {[%emt 0:07:33]} Ke6 {[%emt 0:01:12]} 33. Re1 {[%emt 0:12:50]} Na5 {[%emt 0:02:10]} 34. Ke2 {[%emt 0:20:50]} Nxc4 {[%emt 0:00:30]} 35. Rc1 {[%emt 0:00:45]} Kd5 {[%emt 0:00:47]} 36. Rd1 {[%emt 0:00:41]} Re8 {[%emt 0:00:30]} 37. Kf2 {[%emt 0:00:32]} b5 {[%emt 0:01:07]} 38. Bc1 {[%emt 0:00:21]} a5 {[%emt 0:00:45]} 39. Rb3 {[%emt 0:00:43]} Nd6 {[%emt 0:00:56]} 40. Kf3 {[%emt 0:01:03]} c4 {[%emt 0:00:43]} 41. Rb2 {[%emt 0:00:55]} c3 {[%emt 0:01:35]} 42. Rb3 {[%emt 0:00:21]} Kc4 {[%emt 0:00:35]} 43. Bf4 {[%emt 0:01:09]} Bxf4 {[%emt 0:00:37]} 44. gxf4 {[%emt 0:00:10]} a4 {[%emt 0:00:22]} 45. Rbb1 {[%emt 0:00:14]} c2 {[%emt 0:00:00]} 46. Rbc1 {[%emt 0:00:06]} Kc3 {[%emt 0:01:07]} 47. h4 {[%emt 0:00:18]} d3 {[%emt 0:00:11]} 48. f5 {[%emt 0:01:04]} d2 {[%emt 0:00:09]} 49. h5 {[%emt 0:00:12]} dxc1=Q {[%emt 0:00:20]} 50. Rxc1 {[%emt 0:00:29]} Kd2 {[%emt 0:00:05]} 51. h6 {[%emt 0:00:16]} gxh6 {[%emt 0:00:02]} 52. a3 {[%emt 0:00:16]} Kxc1 {[%emt 0:00:18]} 53. Kg4 {[%emt 0:00:21]} Kd2 {[%emt 0:00:08]} 54. Kf3 {[%emt 0:00:09]} c1=Q {[%emt 0:00:09]} 55. Kg4 {[%emt 0:00:07]} Qg1+ {[%emt 0:00:10]} 56. Kf4 {[%emt 0:00:11]} Re4+ {[%emt 0:00:20]} 57. Kf3 {[%emt 0:00:08]} Qg4+ {[%emt 0:00:09]} 58. Kf2 {[%emt 0:00:08]} Rf4# {[%emt 0:00:20]} 0-1

[Event "NOR-ch Youth 2019"]
[Site "Skien"]
[Date "2019.11.10"]
[Round "6.19"]
[White "Khoo-Thwe, Louis"]
[Black "Ostensen, Nicolai Maxime"]
[Result "1-0"]
[ECO "B45"]
[WhiteElo "1660"]
[BlackElo "1691"]
[Annotator "NA RC"]
[PlyCount "47"]
[EventDate "2019.11.08"]
[EventType "swiss"]
[EventCountry "NOR"]
[SourceTitle "playchess.com"]
[Source "ChessBase"]
[SourceQuality "1"]
[TimeControl "5400+30"]

1. e4 {[%emt 0:00:00]} c5 {[%emt 0:00:20]} 2. Nf3 {[%emt 0:00:00]} e6 {[%emt 0:01:06]} 3. d4 {[%emt 0:00:01]} cxd4 {[%emt 0:00:04]} 4. Nxd4 {[%emt 0:00:08]} Nc6 {[%emt 0:00:14]} 5. Nc3 {[%emt 0:00:23]} Bc5 {[%emt 0:01:21]} 6. Ndb5 {[%emt 0:02:53]} a6 {[%emt 0:14:33]} 7. Nd6+ {[%emt 0:00:32]} Bxd6 {[%emt 0:00:09]} 8. Qxd6 {[%emt 0:00:05]} Qe7 {[%emt 0:00:30]} 9. Qg3 {[%emt 0:02:15]} f6 {[%emt 0:06:58]} 10. Bf4 {[%emt 0:01:19]} h5 {[%emt 0:08:49]} 11. Bd6 {[%emt 0:03:05]} Qf7 {[%emt 0:01:03]} 12. Na4 {[%emt 0:01:08]} h4 {[%emt 0:12:47]} 13. Qf4 {[%emt 0:01:42]} e5 {[%emt 0:03:50]} 14. Qd2 {[%emt 0:00:47]} Nge7 {[%emt 0:06:49]} 15. Nb6 {[%emt 0:00:38]} Ra7 {[%emt 0:00:12]} 16. Bc4 {[%emt 0:01:50]} Qg6 {[%emt 0:00:51]} 17. O-O-O {[%emt 0:00:29]} Qxe4 {[%emt 0:03:07]} 18. Bxe7 {[%emt 0:00:43]} Qf4 {[%emt 0:05:20]} 19. Qxf4 {[%emt 0:00:13]} exf4 {[%emt 0:00:08]} 20. Nxc8 {[%emt 0:00:20]} Ra8 {[%emt 0:00:07]} 21. Nb6 {[%emt 0:00:33]} Ra7 {[%emt 0:00:13]} 22. Rxd7 {[%emt 0:00:13]} Rh6 {[%emt 0:01:31]} 23. Re1 {[%emt 0:01:08]} Ne5 {[%emt 0:00:02]} 24. Bd6 {[%emt 0:00:19]} 1-0

[Event "NOR-ch Youth 2019"]
[Site "Skien"]
[Date "2019.11.10"]
[Round "6.20"]
[White "Brattgjerd, Isak Vinh"]
[Black "Tenfjord Engelsen, Teodor"]
[Result "1-0"]
[ECO "D02"]
[WhiteElo "1699"]
[BlackElo "1349"]
[Annotator "NA RC"]
[PlyCount "101"]
[EventDate "2019.11.08"]
[EventType "swiss"]
[EventCountry "NOR"]
[SourceTitle "playchess.com"]
[Source "ChessBase"]
[SourceQuality "1"]
[TimeControl "5400+30"]

1. d4 {[%emt 0:00:00]} d5 {[%emt 0:00:00]} 2. Bf4 {[%emt 0:00:44]} Nf6 {[%emt 0:00:00]} 3. e3 {[%emt 0:00:10]} c5 {[%emt 0:00:06]} 4. c3 {[%emt 0:00:12]} Nc6 {[%emt 0:00:07]} 5. Nf3 {[%emt 0:00:32]} Bf5 {[%emt 0:00:14]} 6. Bd3 {[%emt 0:00:34]} Bg6 {[%emt 0:00:49]} 7. Bxg6 {[%emt 0:04:07]} hxg6 {[%emt 0:00:35]} 8. Qb3 {[%emt 0:01:49]} Qd7 {[%emt 0:12:13]} 9. Nbd2 {[%emt 0:03:14]} e6 {[%emt 0:01:16]} 10. Rb1 {[%emt 0:06:53]} Nh5 {[%emt 0:01:55]} 11. Bg3 {[%emt 0:07:27]} Nxg3 {[%emt 0:03:13]} 12. fxg3 {[%emt 0:00:35]} cxd4 {[%emt 0:02:04]} 13. exd4 {[%emt 0:00:36]} Bd6 {[%emt 0:06:06]} 14. O-O {[%emt 0:02:17]} Qc7 {[%emt 0:10:27]} 15. Rfe1 {[%emt 0:07:50]} O-O-O {[%emt 0:16:25]} 16. Nf1 {[%emt 0:04:17]} Kb8 {[%emt 0:06:34]} 17. Qb5 {[%emt 0:01:32]} Qa5 {[%emt 0:00:30]} 18. Qd3 {[%emt 0:00:30]} Rc8 {[%emt 0:00:30]} 19. a3 {[%emt 0:00:30]} Qb6 {[%emt 0:00:30]} 20. Kh1 {[%emt 0:00:30]} Qc7 {[%emt 0:00:30]} 21. N3d2 {[%emt 0:00:30]} Ne7 {[%emt 0:00:30]} 22. Rec1 {[%emt 0:00:30]} Nf5 {[%emt 0:00:30]} 23. Kg1 {[%emt 0:00:30]} Qb6 {[%emt 0:00:30]} 24. b4 {[%emt 0:09:03]} Rc7 {[%emt 0:25:19]} 25. Nb3 {[%emt 0:03:37]} Rhc8 {[%emt 0:01:44]} 26. Nc5 {[%emt 0:04:48]} Qc6 {[%emt 0:01:00]} 27. Rb3 {[%emt 0:01:03]} Ka8 {[%emt 0:00:12]} 28. Rcb1 {[%emt 0:00:23]} b6 {[%emt 0:00:22]} 29. b5 {[%emt 0:02:45]} Qe8 {[%emt 0:00:30]} 30. Na4 {[%emt 0:00:20]} Qe7 {[%emt 0:00:42]} 31. Ra1 {[%emt 0:01:02]} Nh6 {[%emt 0:00:20]} 32. Nb2 {[%emt 0:00:34]} Ng8 {[%emt 0:00:21]} 33. a4 {[%emt 0:00:54]} Nf6 {[%emt 0:00:09]} 34. Nd2 {[%emt 0:02:20]} Kb8 {[%emt 0:02:12]} 35. Nd1 {[%emt 0:01:42]} e5 {[%emt 0:01:32]} 36. a5 {[%emt 0:01:46]} exd4 {[%emt 0:00:34]} 37. cxd4 {[%emt 0:01:19]} Rc1 {[%emt 0:00:48]} 38. Rbb1 {[%emt 0:02:26]} Rxb1 {[%emt 0:00:58]} 39. Rxb1 {[%emt 0:00:06]} bxa5 {[%emt 0:01:26]} 40. Nf2 {[%emt 0:07:42]} Bb4 {[%emt 0:00:35]} 41. Nf3 {[%emt 0:04:10]} Ne4 {[%emt 0:00:45]} 42. Ne5 {[%emt 0:00:38]} Ka8 {[%emt 0:02:39]} 43. Nxe4 {[%emt 0:04:19]} dxe4 {[%emt 0:00:21]} 44. Qxe4+ {[%emt 0:00:10]} Qb7 {[%emt 0:00:39]} 45. Nc6 {[%emt 0:01:11]} f5 {[%emt 0:02:19]} 46. Qd5 {[%emt 0:00:32]} Bc3 {[%emt 0:00:31]} 47. Rb3 {[%emt 0:00:57]} Bxd4+ {[%emt 0:00:18]} 48. Qxd4 {[%emt 0:00:18]} Rxc6 {[%emt 0:00:09]} 49. bxc6 {[%emt 0:00:10]} Qxb3 {[%emt 0:00:09]} 50. Qd8+ {[%emt 0:00:03]} Qb8 {[%emt 0:00:18]} 51. c7 {[%emt 0:00:04]} 1-0

[Event "NOR-ch Youth 2019"]
[Site "Skien"]
[Date "2019.11.10"]
[Round "6.22"]
[White "Ji, Jiahao Eric"]
[Black "Myagmarsuren, Evsuld"]
[Result "1-0"]
[ECO "B50"]
[WhiteElo "1667"]
[BlackElo "1471"]
[Annotator "NA RC"]
[PlyCount "73"]
[EventDate "2019.11.08"]
[EventType "swiss"]
[EventCountry "NOR"]
[SourceTitle "playchess.com"]
[Source "ChessBase"]
[SourceQuality "1"]
[TimeControl "5400+30"]

1. e4 {[%emt 0:00:00]} c5 {[%emt 0:00:00]} 2. Nf3 {[%emt 0:00:00]} d6 {[%emt 0:00:00]} 3. c3 {[%emt 0:00:00]} Nf6 {[%emt 0:00:22]} 4. Be2 {[%emt 0:00:11]} Bd7 {[%emt 0:00:22]} 5. d3 {[%emt 0:00:20]} e5 {[%emt 0:00:56]} 6. O-O {[%emt 0:00:19]} Be7 {[%emt 0:00:25]} 7. Bg5 {[%emt 0:01:58]} Nc6 {[%emt 0:02:48]} 8. Nbd2 {[%emt 0:00:39]} O-O {[%emt 0:01:36]} 9. Nc4 {[%emt 0:01:12]} Qc7 {[%emt 0:02:23]} 10. Qc2 {[%emt 0:02:58]} b5 {[%emt 0:06:58]} 11. Ne3 {[%emt 0:00:38]} b4 {[%emt 0:01:49]} 12. Bxf6 {[%emt 0:00:22]} Bxf6 {[%emt 0:01:22]} 13. Nd5 {[%emt 0:00:09]} Qd8 {[%emt 0:00:39]} 14. cxb4 {[%emt 0:07:31]} Nxb4 {[%emt 0:01:54]} 15. Nxb4 {[%emt 0:00:07]} cxb4 {[%emt 0:00:12]} 16. Rac1 {[%emt 0:02:28]} Rc8 {[%emt 0:04:07]} 17. Qb3 {[%emt 0:06:33]} Qb6 {[%emt 0:01:41]} 18. a3 {[%emt 0:03:10]} a5 {[%emt 0:05:23]} 19. axb4 {[%emt 0:01:42]} axb4 {[%emt 0:05:31]} 20. Ra1 {[%emt 0:00:46]} Be6 {[%emt 0:00:30]} 21. Qa4 {[%emt 0:00:30]} b3 {[%emt 0:00:30]} 22. Rfc1 {[%emt 0:08:50]} Qb7 {[%emt 0:02:35]} 23. Rxc8 {[%emt 0:00:00]} Rxc8 {[%emt 0:06:59]} 24. Bd1 {[%emt 0:00:55]} h6 {[%emt 0:00:00]} 25. Nd2 {[%emt 0:01:59]} Bg5 {[%emt 0:06:57]} 26. Nxb3 {[%emt 0:04:21]} Bxb3 {[%emt 0:00:00]} 27. Bxb3 {[%emt 0:00:59]} Rc1+ {[%emt 0:00:00]} 28. Rxc1 {[%emt 0:03:42]} Bxc1 {[%emt 0:00:07]} 29. Qe8+ {[%emt 0:02:01]} Kh7 {[%emt 0:00:00]} 30. Bxf7 {[%emt 0:00:00]} h5 {[%emt 0:00:00]} 31. Qg8+ {[%emt 0:00:00]} Kh6 {[%emt 0:00:00]} 32. Qh8+ {[%emt 0:00:00]} Kg5 {[%emt 0:00:00]} 33. Qxh5+ {[%emt 0:01:12]} Kf6 {[%emt 0:01:39]} 34. Qg6+ {[%emt 0:02:15]} Ke7 {[%emt 0:00:00]} 35. Qe6+ {[%emt 0:00:45]} Kd8 36. Qxd6+ {[%emt 0:00:12]} Qd7 {[%emt 0:00:00]} 37. Qc5 {[%emt 0:00:18]} 1-0

[Event "NOR-ch Youth 2019"]
[Site "Skien"]
[Date "2019.11.10"]
[Round "6.23"]
[White "Kramer, Nikolai"]
[Black "Haug, Havard"]
[Result "0-1"]
[ECO "B26"]
[WhiteElo "1082"]
[BlackElo "1544"]
[Annotator "NA RC"]
[PlyCount "90"]
[EventDate "2019.11.08"]
[EventType "swiss"]
[EventCountry "NOR"]
[SourceTitle "playchess.com"]
[Source "ChessBase"]
[SourceQuality "1"]
[TimeControl "5400+30"]

1. e4 {[%emt 0:00:00]} c5 {[%emt 0:00:00]} 2. Nc3 {[%emt 0:00:00]} d6 {[%emt 0:00:09]} 3. g3 {[%emt 0:00:48]} g6 {[%emt 0:00:08]} 4. Bg2 {[%emt 0:00:57]} Bg7 {[%emt 0:00:26]} 5. d3 {[%emt 0:00:47]} Nc6 {[%emt 0:01:54]} 6. Be3 {[%emt 0:01:35]} e6 {[%emt 0:00:45]} 7. Qd2 {[%emt 0:00:47]} Nge7 {[%emt 0:00:39]} 8. Bh6 {[%emt 0:03:08]} O-O {[%emt 0:00:27]} 9. Bxg7 {[%emt 0:00:40]} Kxg7 {[%emt 0:00:11]} 10. f4 {[%emt 0:02:52]} d5 {[%emt 0:02:18]} 11. Nf3 {[%emt 0:02:06]} d4 {[%emt 0:04:51]} 12. Ne2 {[%emt 0:00:50]} f5 {[%emt 0:00:41]} 13. O-O {[%emt 0:01:20]} Qa5 {[%emt 0:00:23]} 14. Qxa5 {[%emt 0:01:15]} Nxa5 {[%emt 0:00:07]} 15. Ne5 {[%emt 0:02:01]} Nac6 {[%emt 0:00:43]} 16. Nc4 {[%emt 0:03:27]} b5 {[%emt 0:01:04]} 17. Nd6 {[%emt 0:00:46]} Ba6 {[%emt 0:01:23]} 18. e5 {[%emt 0:02:40]} Nd5 {[%emt 0:01:35]} 19. Bxd5 {[%emt 0:01:48]} exd5 {[%emt 0:00:09]} 20. h3 {[%emt 0:02:52]} Nd8 {[%emt 0:03:23]} 21. Rf2 {[%emt 0:01:13]} Nf7 {[%emt 0:00:28]} 22. Nxf7 {[%emt 0:01:01]} Rxf7 {[%emt 0:00:07]} 23. Kg2 {[%emt 0:05:32]} b4 {[%emt 0:00:31]} 24. Ng1 {[%emt 0:01:50]} c4 {[%emt 0:00:43]} 25. dxc4 {[%emt 0:01:13]} dxc4 {[%emt 0:01:56]} 26. Rd1 {[%emt 0:01:24]} Rd8 {[%emt 0:01:44]} 27. Nf3 {[%emt 0:00:19]} Bb7 {[%emt 0:00:39]} 28. Kh2 {[%emt 0:00:39]} Bxf3 {[%emt 0:00:18]} 29. Rxf3 {[%emt 0:00:06]} Rfd7 {[%emt 0:00:13]} 30. g4 {[%emt 0:01:22]} Kf7 {[%emt 0:01:00]} 31. Re1 {[%emt 0:00:46]} Ke6 {[%emt 0:00:18]} 32. Kg2 {[%emt 0:00:34]} c3 {[%emt 0:00:44]} 33. bxc3 {[%emt 0:01:00]} dxc3 {[%emt 0:00:10]} 34. Rfe3 {[%emt 0:02:46]} Rd5 {[%emt 0:03:46]} 35. Kf3 {[%emt 0:00:25]} Ra5 {[%emt 0:00:20]} 36. Ra1 {[%emt 0:00:37]} Ra3 {[%emt 0:01:07]} 37. Re2 {[%emt 0:03:11]} a5 {[%emt 0:01:13]} 38. Ke3 {[%emt 0:00:35]} a4 {[%emt 0:00:15]} 39. Ree1 {[%emt 0:00:51]} Rd2 {[%emt 0:01:18]} 40. Reb1 {[%emt 0:02:22]} Rxc2 {[%emt 0:04:01]} 41. Rxb4 {[%emt 0:00:10]} Rb2 {[%emt 0:00:49]} 42. Rc4 {[%emt 0:01:04]} c2+ {[%emt 0:00:22]} 43. Kd4 {[%emt 0:04:06]} Rb1 {[%emt 0:00:15]} 44. Rc6+ {[%emt 0:00:47]} Kd7 {[%emt 0:00:09]} 45. e6+ {[%emt 0:01:01]} Kxc6 {[%emt 0:00:19]} 0-1

[Event "NOR-ch Youth 2019"]
[Site "Skien"]
[Date "2019.11.10"]
[Round "7.1"]
[White "Lund, Gunnar"]
[Black "Unhjem, Bjorn Robert Lovoll"]
[Result "1-0"]
[ECO "D00"]
[WhiteElo "2274"]
[BlackElo "1942"]
[Annotator "ChessBase"]
[PlyCount "44"]
[EventDate "2019.11.08"]
[EventType "swiss"]
[EventCountry "NOR"]
[SourceTitle "playchess.com"]
[Source "ChessBase"]
[SourceQuality "1"]
[TimeControl "5400+30"]

1. d4 {[%emt 0:00:00]} Nf6 {[%emt 0:06:33]} 2. Bf4 {[%emt 0:00:00]} d5 {[%emt 0:04:20]} 3. e3 {[%emt 0:00:00]} c5 {[%emt 0:00:29]} 4. c3 {[%emt 0:00:00]} Nc6 {[%emt 0:00:05]} 5. Nd2 {[%emt 0:00:02]} Bf5 {[%emt 0:01:43]} 6. Qb3 {[%emt 0:00:16]} Qc8 {[%emt 0:01:00]} 7. Ngf3 {[%emt 0:00:06]} e6 {[%emt 0:00:28]} 8. Nh4 {[%emt 0:00:07]} Bg6 {[%emt 0:00:38]} 9. Nxg6 {[%emt 0:05:41]} hxg6 {[%emt 0:00:04]} 10. Be2 {[%emt 0:00:35]} Nh5 {[%emt 0:01:17]} 11. Bg5 {[%emt 0:11:08]} Bd6 {[%emt 0:04:51]} 12. dxc5 {[%emt 0:04:25]} Bxc5 {[%emt 0:00:18]} 13. O-O-O {[%emt 0:00:16]} d4 {[%emt 0:00:38]} 14. exd4 {[%emt 0:05:05]} Bxd4 {[%emt 0:00:53]} 15. Nc4 {[%emt 0:09:14]} Bc5 {[%emt 0:00:03]} 16. Qb5 {[%emt 0:01:45]} Bf8 {[%emt 0:01:02]} 17. Rd8+ {[%emt 0:01:43]} Qxd8 {[%emt 0:00:01]} 18. Bxd8 {[%emt 0:00:10]} Rxd8 {[%emt 0:00:07]} 19. Qxb7 {[%emt 0:00:45]} Ne7 {[%emt 0:00:14]} 20. Qb5+ {[%emt 0:00:55]} Rd7 {[%emt 0:00:14]} 21. Nd6+ {[%emt 0:00:12]} Kd8 {[%emt 0:00:02]} 22. Qb8+ {[%emt 0:01:19]} Nc8 {[%emt 0:00:01]} 1-0

[Event "NOR-ch Youth 2019"]
[Site "Skien"]
[Date "2019.11.10"]
[Round "7.2"]
[White "Risting, Eivind Olav"]
[Black "Hestvik, Elias"]
[Result "1-0"]
[ECO "D45"]
[WhiteElo "2298"]
[BlackElo "1784"]
[Annotator "NA"]
[PlyCount "47"]
[EventDate "2019.11.08"]
[EventType "swiss"]
[EventCountry "NOR"]
[SourceTitle "playchess.com"]
[Source "ChessBase"]
[SourceQuality "1"]
[TimeControl "5400+30"]

1. Nf3 {[%emt 0:00:00]} d5 {[%emt 0:03:46]} 2. c4 {[%emt 0:00:00]} c6 {[%emt 0:01:18]} 3. e3 {[%emt 0:00:52]} Nf6 {[%emt 0:01:07]} 4. Nc3 {[%emt 0:00:40]} e6 {[%emt 0:01:42]} 5. b3 {[%emt 0:01:25]} Be7 {[%emt 0:02:39]} 6. Bb2 {[%emt 0:00:26]} O-O {[%emt 0:00:37]} 7. Qc2 {[%emt 0:03:30]} Nbd7 {[%emt 0:02:58]} 8. Be2 {[%emt 0:03:45]} b6 {[%emt 0:02:29]} 9. O-O {[%emt 0:05:22]} Bb7 {[%emt 0:03:55]} 10. d4 {[%emt 0:00:18]} Qc7 {[%emt 0:02:10]} 11. Rfd1 $11 {[%emt 0:02:18]} Rac8 {[%emt 0:04:43]} 12. Rac1 {[%emt 0:18:36]} Rfd8 {[%emt 0:08:30]} 13. h3 {[%emt 0:04:23]} a6 {[%emt 0:07:10]} 14. Bd3 {[%emt 0:01:55]} c5 {[%emt 0:03:58]} 15. cxd5 {[%emt 0:02:04]} cxd4 {[%emt 0:03:59]} 16. Nxd4 {[%emt 0:03:42]} exd5 {[%emt 0:04:02]} 17. Qe2 {[%emt 0:01:03]} Nc5 {[%emt 0:03:08]} 18. Bf5 {[%emt 0:01:30]} Ra8 {[%emt 0:05:49]} 19. b4 {[%emt 0:01:28]} Ncd7 {[%emt 0:00:31]} 20. Nxd5 {[%emt 0:00:36]} Qd6 {[%emt 0:00:22]} 21. Nxe7+ {[%emt 0:00:57]} Qxe7 {[%emt 0:00:12]} 22. Nc6 {[%emt 0:04:41]} Bxc6 {[%emt 0:01:21]} 23. Rxc6 {[%emt 0:00:08]} Qxb4 {[%emt 0:04:05]} 24. Rcd6 {[%emt 0:01:03]} 1-0